bitfinex/quotes_SOLUSD_20250829
["timestamp","ask_amount","ask_price","bid_price","bid_amount"]
[1756489451774,1e-08,203.95,203.94,184.9973894]
[1756489451977,0.06,203.97,203.95,13.59559401]
[1756489452285,0.06,203.97,203.96,65.26182487]
[1756489452456,1e-08,203.97,203.96,66.09398644]
[1756489453076,1e-08,203.97,203.96,72.96168958]
[1756489453477,0.622326,204.04,204.03,39.59559401]
[1756489453678,0.622326,204.04,204.03,37.32623086]
[1756489453862,0.622326,204.04,204.03,77.64623086]
[1756489454059,0.622326,204.04,204.03,37.32623086]
[1756489454286,1.332326,204.04,204.03,40.32]
[1756489454472,1.332326,204.04,204.01,11.32623086]
[1756489454790,0.622326,204.04,204.02,40.32]
[1756489455263,0.622326,204.04,204.02,56.54767835]
[1756489455461,1.332326,204.04,204.03,88.0]
[1756489457773,1.332326,204.04,204.03,128.32]
[1756489459172,0.622326,204.04,204.03,128.32]
[1756489460678,0.622326,204.04,204.03,133.22124001]
[1756489460896,0.622326,204.04,204.03,128.32]
[1756489461192,0.622326,204.04,204.03,144.54747087]
[1756489461686,0.622326,204.04,204.03,145.23747087]
[1756489461891,0.622326,204.04,204.03,57.23747087]
[1756489462477,0.71,204.13,204.03,162.82832648]
[1756489462786,0.71,204.13,204.1,11.32623086]
[1756489463000,40.44216157,204.21,204.11,51.62623086]
[1756489463001,0.71,204.16,204.11,51.62623086]
[1756489463190,0.71,204.15,204.11,51.62623086]
[1756489463486,0.71,204.15,204.11,40.3]
[1756489463667,0.71,204.14,204.11,40.3]
[1756489464087,0.71,204.14,204.1,11.32623086]
[1756489464274,0.71,204.13,204.11,40.28]
[1756489464471,0.71,204.12,204.08,11.32623086]
[1756489464685,11.32623086,204.14,204.09,40.28]
[1756489464686,0.71,204.11,204.09,40.28]
[1756489464891,0.71,204.11,204.07,11.32623086]
[1756489464892,0.71,204.11,204.1,128.28]
[1756489465282,12.03623086,204.13,204.1,128.28]
[1756489465475,0.71,204.12,204.1,128.28]
[1756489466781,26.0,204.16,204.11,12.01623086]
[1756489467111,0.71,204.16,204.12,40.28]
[1756489468875,26.0,204.17,204.12,45.17901851]
[1756489469192,0.71,204.16,204.12,45.17907672]
[1756489469397,26.0,204.17,204.12,45.17907672]
[1756489469691,26.71,204.17,204.12,4.89907672]
[1756489469897,26.71,204.17,204.13,40.26]
[1756489470391,0.06,204.16,204.13,40.26]
[1756489471494,0.74,204.16,204.13,40.26]
[1756489471881,7.74851438,204.15,204.08,15.429348]
[1756489472074,7.74851438,204.15,204.13,88.0]
[1756489472474,0.06,204.16,204.14,40.26]
[1756489474005,0.06,204.16,204.14,40.96]
[1756489474313,0.06,204.16,204.15,7.76851438]
[1756489476874,0.06,204.16,204.15,12.66687342]
[1756489477099,0.06,204.16,204.15,7.76851438]
[1756489477300,0.06,204.16,204.15,95.76851438]
[1756489477497,0.06,204.16,204.15,88.0]
[1756489477697,0.06,204.16,204.15,128.24]
[1756489479503,0.06,204.16,204.15,88.0]
[1756489479709,7.80851438,204.16,204.15,88.0]
[1756489480705,0.06,204.16,204.15,88.0]
[1756489482209,0.06,204.16,204.15,128.22]
[1756489483199,0.74,204.16,204.15,88.0]
[1756489483385,0.06,204.16,204.15,128.22]
[1756489486484,7.12851438,204.16,204.15,128.22]
[1756489486685,0.06,204.16,204.15,128.22]
[1756489488102,0.74,204.16,204.15,128.22]
[1756489488307,0.06,204.16,204.15,128.22]
[1756489488999,0.06,204.16,204.15,128.92]
[1756489489205,0.06,204.16,204.15,135.98851438]
[1756489490203,0.06,204.16,204.15,88.0]
[1756489490410,0.06,204.16,204.15,128.2]
[1756489491087,0.06,204.16,204.15,128.9]
[1756489491792,0.06,204.16,204.15,133.79835904]
[1756489492125,0.06,204.16,204.15,128.18]
[1756489492701,0.06,204.16,204.15,133.77835904]
[1756489492908,0.06,204.16,204.15,140.84687342]
[1756489493189,0.06,204.16,204.15,88.7]
[1756489493512,0.06,204.16,204.15,140.14687342]
[1756489493692,0.06,204.16,204.15,140.84687342]
[1756489496305,0.06,204.16,204.15,100.66687342]
[1756489496790,0.06,204.16,204.15,140.84687342]
[1756489500510,1e-08,204.16,204.15,260.184629]
[1756489500905,1e-08,204.16,204.15,262.147771]
[1756489501113,1e-08,204.16,204.15,262.127771]
[1756489503495,1e-08,204.16,204.15,221.82560943]
[1756489503704,1e-08,204.16,204.15,161.68150104]
[1756489503902,1e-08,204.16,204.15,166.10687342]
[1756489504597,1e-08,204.16,204.15,88.0]
[1756489504810,7.77851439,204.16,204.15,88.0]
[1756489505615,1e-08,204.16,204.15,92.92835904]
[1756489505798,1e-08,204.16,204.15,100.67687342]
[1756489506694,1e-08,204.16,204.15,140.13687342]
[1756489506895,1e-08,204.16,204.15,88.03]
[1756489507143,0.71000001,204.16,204.15,128.17]
[1756489507337,1e-08,204.16,204.15,133.06835904]
[1756489507824,1e-08,204.16,204.15,140.81687342]
[1756489508430,1e-08,204.16,204.15,154.554629]
[1756489508936,1e-08,204.16,204.15,162.705389]
[1756489510705,1e-08,204.16,204.15,188.54322743]
[1756489511640,1e-08,204.16,204.15,187.86322743]
[1756489511817,1e-08,204.16,204.15,188.54322743]
[1756489512629,1e-08,204.16,204.15,148.42322743]
[1756489512810,1e-08,204.16,204.15,188.54322743]
[1756489514213,1e-08,204.16,204.15,242.285389]
[1756489522244,0.12232601,204.2,204.19,13.59559401]
[1756489522424,0.12232601,204.2,204.19,60.74410839]
[1756489523014,0.12232601,204.2,204.19,68.89486839]
[1756489523940,0.12232601,204.2,204.19,73.79226787]
[1756489524241,1e-08,204.2,204.19,73.93442944]
[1756489524432,1e-08,204.2,204.19,146.46591506]
[1756489524637,1e-08,204.2,204.19,154.21442944]
[1756489525326,1e-08,204.2,204.19,153.53442944]
[1756489525526,1e-08,204.2,204.19,241.53442944]
[1756489525740,1e-08,204.2,204.19,242.21442944]
[1756489526450,1e-08,204.22,204.21,39.73775558]
[1756489526621,0.71,204.3,204.25,26.0]
[1756489526817,0.71,204.3,204.29,7.06851438]
[1756489527043,0.71,204.3,204.29,47.12851438]
[1756489527222,0.71,204.32,204.29,47.12851438]
[1756489527422,7.69084038,204.36,204.31,7.06851438]
[1756489527622,7.69084038,204.36,204.32,40.06]
[1756489527822,7.06851438,204.35,204.28,4.89524182]
[1756489528022,0.71,204.34,204.29,33.06851438]
[1756489528225,0.71,204.34,204.3,40.04]
[1756489528450,0.71,204.33,204.3,40.04]
[1756489528751,7.06851438,204.35,204.31,7.06851438]
[1756489528752,0.71,204.35,204.31,7.06851438]
[1756489528921,0.622326,204.36,204.32,40.04]
[1756489528922,0.71,204.34,204.32,40.04]
[1756489529241,0.71,204.33,204.32,40.04]
[1756489529625,0.71,204.33,204.32,128.04]
[1756489530021,0.71,204.33,204.32,132.93428347]
[1756489530625,0.71,204.33,204.32,140.00279785]
[1756489530826,0.622326,204.36,204.32,140.00279785]
[1756489530827,1.282326,204.36,204.32,140.00279785]
[1756489531045,0.66,204.35,204.33,7.06851438]
[1756489531356,0.66,204.35,204.34,40.04]
[1756489531526,0.622326,204.36,204.35,13.59559401]
[1756489531724,0.622326,204.36,204.35,20.66410839]
[1756489531963,1e-08,204.36,204.35,22.01562645]
[1756489532247,0.66,204.47,204.42,26.0]
[1756489532424,0.66,204.46,204.45,7.06851438]
[1756489532624,0.66,204.46,204.45,40.02]
[1756489533629,0.66,204.49,204.45,47.08851438]
[1756489533833,0.66,204.48,204.47,7.06851438]
[1756489534041,0.66,204.48,204.47,40.02]
[1756489534243,0.66,204.48,204.35,0.72]
[1756489534445,7.06851438,204.44,204.39,33.06851438]
[1756489534666,7.06851438,204.44,204.43,88.0]
[1756489535266,7.72851438,204.44,204.37,14.708406]
[1756489535433,7.06851438,204.38,204.37,14.708406]
[1756489535631,0.66,204.38,204.37,14.708406]
[1756489536043,0.66,204.38,204.35,44.91352388]
[1756489536245,0.66,204.37,204.35,40.02]
[1756489536437,0.66,204.36,204.35,40.02]
[1756489536936,0.66,204.36,204.34,40.0]
[1756489537437,7.72851438,204.38,204.34,40.0]
[1756489537644,0.66,204.38,204.34,47.06851438]
[1756489537846,0.66,204.42,204.36,7.06851438]
[1756489538033,0.66,204.42,204.37,47.06851438]
[1756489538236,0.66,204.41,204.4,88.0]
[1756489538452,0.66,204.41,204.4,128.0]
[1756489539358,7.72851438,204.41,204.4,88.0]
[1756489539952,0.66,204.43,204.4,88.0]
[1756489540154,30.89094867,204.46,204.4,88.0]
[1756489540155,0.66,204.45,204.4,128.0]
[1756489540363,7.72851438,204.44,204.4,128.0]
[1756489540571,7.06851438,204.41,204.4,88.0]
[1756489540861,7.72851438,204.41,204.4,88.0]
[1756489541558,0.66,204.41,204.4,88.0]
[1756489541938,0.06,204.41,204.4,88.0]
[1756489542139,0.72,204.41,204.4,88.0]
[1756489542353,7.78851438,204.41,204.4,88.0]
[1756489542757,0.06,204.41,204.4,88.0]
[1756489543560,0.06,204.41,204.4,93.6123679]
[1756489543750,0.06,204.41,204.4,114.27647629]
[1756489544061,0.06,204.41,204.4,52.27647629]
[1756489544269,0.06,204.41,204.4,54.23740529]
[1756489545649,0.06,204.41,204.4,28.23740529]
[1756489545856,0.06,204.41,204.4,28.37956686]
[1756489546053,7.72851438,204.51,204.43,26.0]
[1756489546251,7.72851438,204.51,204.46,7.06851438]
[1756489546438,0.66,204.5,204.47,39.98]
[1756489546638,0.66,204.49,204.47,39.98]
[1756489546943,1.282326,204.53,204.48,95.06851438]
[1756489547132,0.66,204.52,204.49,39.98]
[1756489547335,7.69084038,204.53,204.49,39.98]
[1756489547336,0.622326,204.53,204.49,39.98]
[1756489547643,0.622326,204.53,204.49,47.04851438]
[1756489547841,0.622326,204.53,204.49,47.76851438]
[1756489548063,1.282326,204.53,204.49,47.04851438]
[1756489548361,1.282326,204.53,204.52,7.06851438]
[1756489548362,0.622326,204.53,204.52,7.06851438]
[1756489548569,0.622326,204.53,204.52,47.02851438]
[1756489548861,1.1715072,204.61,204.52,73.74851438]
[1756489549038,1.1715072,204.61,204.53,0.72]
[1756489549243,8.90002158,204.61,204.55,7.06851438]
[1756489549446,1.8315072,204.61,204.57,7.06851438]
[1756489549652,1.1715072,204.61,204.58,47.02851438]
[1756489550058,1.1715072,204.61,204.6,7.06851438]
[1756489550260,1.1715072,204.61,204.6,58.98461429]
[1756489550436,0.1715072,204.61,204.6,12.67609991]
[1756489550641,0.1715072,204.61,204.6,52.63609991]
[1756489550955,0.8315072,204.61,204.59,6.348514]
[1756489551144,19.60461429,204.6,204.46,7.06851438]
[1756489551342,26.0,204.58,204.46,7.06851438]
[1756489551650,7.06851438,204.52,204.47,33.98]
[1756489551850,7.64851438,204.52,204.47,33.98]
[1756489552060,7.06851438,204.5,204.47,33.98]
[1756489552568,7.06851438,204.49,204.47,33.98]
[1756489552865,7.06851438,204.5,204.47,33.98]
[1756489553453,11.27241494,204.5,204.47,33.98]
[1756489553654,11.27241494,204.48,204.47,33.98]
[1756489553951,5.46854125,204.56,204.47,121.7]
[1756489554161,4.88901926,204.54,204.47,87.0]
[1756489554369,11.27241494,204.48,204.47,87.0]
[1756489554871,4.88901926,204.54,204.47,87.0]
[1756489554872,5.46901926,204.54,204.47,87.0]
[1756489555168,11.27241494,204.5,204.47,87.0]
[1756489555539,11.27241494,204.49,204.47,87.0]
[1756489555852,11.27241494,204.48,204.47,87.0]
[1756489556673,16.74286877,204.48,204.47,87.0]
[1756489557201,5.47045383,204.48,204.47,87.0]
[1756489557338,16.74286877,204.48,204.47,87.0]
[1756489558165,28.01528371,204.48,204.37,49.988406]
[1756489558361,11.27241494,204.4,204.38,39.94]
[1756489558949,11.27241494,204.39,204.38,39.94]
[1756489559349,11.27241494,204.4,204.38,39.94]
[1756489559742,0.58,204.46,204.38,40.66]
[1756489559941,11.27241494,204.42,204.38,39.94]
[1756489560155,11.27241494,204.41,204.38,39.94]
[1756489560354,11.27241494,204.4,204.38,39.94]
[1756489560676,11.27241494,204.42,204.38,44.83283269]
[1756489560856,0.58,204.51,204.41,11.27241494]
[1756489561074,52.16199581,204.55,204.44,11.27241494]
[1756489561075,11.27241494,204.5,204.44,11.27241494]
[1756489561385,11.27241494,204.5,204.47,87.0]
[1756489561695,304.8888364,204.55,204.47,87.0]
[1756489561855,0.06,204.51,204.48,39.94]
[1756489562059,0.06,204.51,204.48,40.59]
[1756489562479,11.33241494,204.51,204.48,39.94]
[1756489563399,11.27241494,204.5,204.48,39.94]
[1756489563566,11.27241494,204.49,204.47,87.0]
[1756489563898,11.85241494,204.48,204.47,87.0]
[1756489564190,11.27241494,204.5,204.47,87.0]
[1756489564595,11.27241494,204.48,204.47,87.0]
[1756489564963,11.85241494,204.48,204.47,87.0]
[1756489565873,23.12482988,204.48,204.41,0.03]
[1756489566074,11.27241494,204.43,204.41,0.03]
[1756489566467,11.27241494,204.42,204.41,0.03]
[1756489568665,11.85241494,204.42,204.41,87.03]
[1756489568867,11.27241494,204.42,204.41,87.03]
[1756489569680,11.85241494,204.42,204.41,87.03]
[1756489569886,11.27241494,204.42,204.41,87.03]
[1756489570084,11.27241494,204.43,204.41,87.68]
[1756489570395,0.58,204.48,204.41,87.68]
[1756489570396,11.27241494,204.44,204.42,0.65]
[1756489570690,11.27241494,204.44,204.42,40.59]
[1756489570986,11.27241494,204.43,204.42,39.94]
[1756489571288,11.85241494,204.43,204.41,87.03]
[1756489571594,11.27241494,204.42,204.41,87.03]
[1756489572176,0.14216157,204.41,204.33,0.68]
[1756489572381,11.27241494,204.34,204.33,0.03]
[1756489572578,11.27241494,204.34,204.33,0.68]
[1756489572787,39.94,204.42,204.33,0.68]
[1756489572984,11.27241494,204.34,204.33,0.68]
[1756489573380,0.58,204.42,204.33,0.68]
[1756489573593,11.27241494,204.34,204.33,0.68]
[1756489574301,0.58,204.41,204.33,0.68]
[1756489574596,11.27241494,204.34,204.33,0.68]
[1756489577201,11.27241494,204.34,204.33,0.03]
[1756489577804,0.58,204.38,204.33,0.03]
[1756489578015,11.27241494,204.34,204.33,0.03]
[1756489579184,16.74621938,204.34,204.33,0.03]
[1756489580007,16.74621938,204.34,204.26,39.94]
[1756489580198,11.27241494,204.27,204.22,0.65]
[1756489580513,11.27241494,204.23,204.21,4.8777855]
[1756489580689,11.27241494,204.22,204.21,4.8777855]
[1756489580887,11.27241494,204.22,204.2,0.2]
[1756489581119,0.58,204.27,204.2,0.2]
[1756489581120,5.47561825,204.27,204.2,5.74715613]
[1756489581290,5.47561825,204.27,204.2,0.85]
[1756489581291,11.27241494,204.21,204.2,0.85]
[1756489581919,11.27241494,204.21,204.2,0.2]
[1756489582586,11.27241494,204.24,204.2,0.2]
[1756489582587,26.0,204.24,204.2,0.2]
[1756489582788,11.27241494,204.21,204.2,0.2]
[1756489583206,11.27241494,204.22,204.2,0.2]
[1756489583617,11.27241494,204.21,204.2,0.2]
[1756489584986,16.16933477,204.21,204.2,0.2]
[1756489585197,16.74933477,204.21,204.2,0.2]
[1756489586617,16.89149634,204.21,204.2,0.2]
[1756489588797,42.89149634,204.21,204.2,0.2]
[1756489589216,37.27241494,204.21,204.2,0.2]
[1756489589516,42.16933477,204.21,204.2,0.2]
[1756489589909,42.31149634,204.21,204.2,0.2]
[1756489590120,42.89149634,204.21,204.2,0.2]
[1756489590498,37.27241494,204.21,204.2,0.2]
[1756489591091,11.27241494,204.21,204.2,0.2]
[1756489591619,11.27241494,204.24,204.2,0.88]
[1756489591825,11.27241494,204.24,204.21,0.68]
[1756489592518,11.27241494,204.23,204.21,0.68]
[1756489592723,11.27241494,204.22,204.2,0.2]
[1756489593025,11.27241494,204.21,204.2,0.2]
[1756489594021,11.27241494,204.23,204.2,0.88]
[1756489594628,11.27241494,204.22,204.2,0.2]
[1756489594795,30.89613519,204.25,204.2,0.2]
[1756489594993,11.27241494,204.21,204.2,0.2]
[1756489595497,16.31149634,204.21,204.2,0.2]
[1756489595691,30.48709035,204.21,204.2,0.2]
[1756489595898,4.89691983,204.21,204.2,0.2]
[1756489596134,16.16933477,204.21,204.2,0.2]
[1756489596796,4.89691983,204.21,204.2,0.2]
[1756489597102,11.27241494,204.21,204.2,0.2]
[1756489597592,16.16933477,204.21,204.2,0.2]
[1756489597790,70.44709035,204.21,204.2,0.2]
[1756489599206,59.17467541,204.21,204.2,0.2]
[1756489599405,70.44709035,204.21,204.2,0.2]
[1756489599621,39.59559401,204.18,204.17,0.03]
[1756489599927,13.73775558,204.17,204.15,0.03]
[1756489600228,37.27241494,204.16,204.15,0.03]
[1756489601121,37.41457651,204.16,204.15,0.03]
[1756489601604,74.40119747,204.16,204.15,0.03]
[1756489601806,45.00028069,204.16,204.15,0.03]
[1756489602022,16.17053406,204.16,204.15,0.03]
[1756489602322,42.17053406,204.16,204.15,0.03]
[1756489603094,42.31269563,204.16,204.15,0.03]
[1756489603298,56.48828964,204.16,204.15,0.03]
[1756489603499,55.90828964,204.16,204.15,0.03]
[1756489603719,42.31269563,204.16,204.15,0.03]
[1756489603926,71.00028069,204.16,204.15,0.03]
[1756489604128,82.85269563,204.16,204.15,0.03]
[1756489604514,82.27269563,204.16,204.15,0.03]
[1756489605027,69.86828964,204.16,204.15,0.03]
[1756489605231,20.0,204.06,203.97,0.03]
[1756489605409,26.0,204.01,203.97,0.03]
[1756489605604,77.23241494,204.01,203.97,0.03]
[1756489605807,42.17413544,204.01,203.97,0.03]
[1756489606000,82.15413544,204.01,203.97,0.03]
[1756489606201,42.17413544,204.01,203.97,0.03]
[1756489606613,82.13413544,204.01,203.97,0.03]
[1756489607203,82.15413544,204.01,203.97,0.03]
[1756489608598,77.25241494,204.01,203.97,0.03]
[1756489609598,107.16430596,204.01,203.97,0.03]
[1756489609804,81.74430596,204.01,203.97,0.03]
[1756489610004,37.41457651,203.98,203.97,0.03]
[1756489610216,77.39457651,203.98,203.97,0.03]
[1756489610422,77.39457651,203.98,203.97,0.71]
[1756489610423,77.25241494,203.98,203.97,0.71]
[1756489610613,77.25241494,203.98,203.97,0.03]
[1756489611626,77.39457651,203.98,203.97,0.03]
[1756489611833,82.29701792,203.98,203.97,0.03]
[1756489612038,42.31701792,203.98,203.97,0.03]
[1756489612222,37.27241494,203.98,203.97,0.03]
[1756489612538,77.25241494,203.98,203.97,0.03]
[1756489612917,37.27241494,203.98,203.97,0.03]
[1756489613220,95.89261193,203.98,203.97,0.03]
[1756489613530,96.47261193,203.98,203.97,0.03]
[1756489613732,51.25241494,203.98,203.97,0.03]
[1756489613931,56.15485635,203.98,203.97,0.03]
[1756489616223,16.17485635,203.98,203.97,0.03]
[1756489616428,56.17485635,203.98,203.97,0.03]
[1756489617845,37.27241494,203.98,203.97,0.03]
[1756489618242,77.27241494,203.98,203.97,0.03]
[1756489618722,77.27241494,203.98,203.97,0.71]
[1756489620252,6.83522124,204.06,203.97,0.71]
[1756489620440,11.27241494,204.05,203.99,11.27241494]
[1756489620625,11.27241494,204.06,204.0,11.99241494]
[1756489620821,51.27241494,204.06,204.01,0.72]
[1756489621023,11.27241494,204.05,204.01,0.72]
[1756489621855,11.27241494,204.05,204.01,5.62166925]
[1756489622155,11.27241494,204.02,203.97,0.03]
[1756489622356,11.27241494,204.0,203.98,0.72]
[1756489622522,11.27241494,204.0,203.97,0.03]
[1756489622523,11.27241494,203.99,203.97,0.03]
[1756489622725,11.27241494,203.98,203.97,0.03]
[1756489623248,26.0,204.01,203.97,0.75]
[1756489623450,11.27241494,204.02,203.97,5.65268176]
[1756489623750,11.27241494,204.03,203.99,4.90220108]
[1756489623928,11.27241494,204.04,204.0,0.72]
[1756489624264,66.0,204.05,203.98,11.27241494]
[1756489624265,11.27241494,204.03,204.01,0.72]
[1756489624564,70.90081991,204.05,204.01,0.72]
[1756489624565,11.27241494,204.02,204.01,0.72]
[1756489624736,11.27241494,204.02,203.97,0.03]
[1756489624941,11.27241494,203.98,203.97,0.03]
[1756489625464,40.0,204.01,203.97,0.03]
[1756489625465,26.0,204.0,203.97,0.03]
[1756489625625,40.0,204.01,203.97,0.03]
[1756489625626,42.17485635,203.98,203.97,0.03]
[1756489625821,82.17485635,203.98,203.97,0.03]
[1756489627657,82.75485635,203.98,203.97,0.03]
[1756489627859,82.31701792,203.98,203.97,0.03]
[1756489628159,4.9009998,204.04,203.97,0.75]
[1756489628335,11.27241494,204.01,203.97,0.75]
[1756489628524,11.27241494,204.01,203.98,0.72]
[1756489628855,11.27241494,204.01,203.99,0.72]
[1756489629058,11.27241494,204.0,203.97,0.03]
[1756489629238,11.27241494,203.98,203.97,0.03]
[1756489629648,11.41457651,203.98,203.97,0.03]
[1756489629947,56.31701792,203.98,203.97,0.03]
[1756489630131,51.41457651,203.98,203.97,0.03]
[1756489630325,56.31701792,203.98,203.97,0.03]
[1756489632459,44.90244141,203.98,203.97,0.03]
[1756489632628,11.27241494,203.98,203.97,0.03]
[1756489632957,11.27241494,203.98,203.97,0.75]
[1756489633145,11.27241494,203.98,203.97,0.03]
[1756489633346,25.44800895,203.98,203.97,0.03]
[1756489633656,39.73775558,203.95,203.94,1e-08]
[1756489633827,13.73775558,203.94,203.92,0.03]
[1756489634022,56.31821991,203.93,203.92,0.03]
[1756489634654,16.31821991,203.93,203.92,0.03]
[1756489634949,56.31821991,203.93,203.92,0.03]
[1756489635845,2.546713,203.95,203.92,0.75]
[1756489635846,40.0,203.95,203.92,0.75]
[1756489636047,11.27241494,203.93,203.92,0.75]
[1756489636652,11.27241494,203.93,203.92,0.03]
[1756489637455,11.27241494,203.93,203.92,0.75]
[1756489637651,16.17605834,203.93,203.92,0.03]
[1756489638155,11.27241494,203.93,203.92,0.75]
[1756489638457,11.27241494,203.93,203.92,0.03]
[1756489638628,11.27241494,203.93,203.92,0.75]
[1756489638831,11.27241494,203.93,203.92,0.03]
[1756489639055,11.27241494,203.93,203.92,0.75]
[1756489639456,11.27241494,203.93,203.92,0.03]
[1756489639654,4.9036434,203.93,203.92,0.03]
[1756489639838,42.31821991,203.93,203.92,0.03]
[1756489642070,42.31821991,203.93,203.89,0.03]
[1756489642071,26.0,203.9,203.89,0.03]
[1756489642360,24.77682088,203.89,203.87,0.03]
[1756489642552,39.59559401,203.85,203.83,0.03]
[1756489642752,97.70533659,203.85,203.83,0.03]
[1756489642943,98.28533659,203.85,203.83,0.03]
[1756489643137,13.59559401,203.84,203.83,0.03]
[1756489643339,71.70533659,203.84,203.83,0.03]
[1756489643544,76.61114506,203.84,203.83,0.03]
[1756489643761,77.19114506,203.84,203.83,0.03]
[1756489644263,81.22165895,203.84,203.83,0.03]
[1756489645055,58.10974258,203.84,203.83,0.03]
[1756489645862,63.01555105,203.84,203.83,0.03]
[1756489648162,84.10974258,203.84,203.83,0.03]
[1756489648376,89.01555105,203.84,203.83,0.03]
[1756489651173,40.02,203.84,203.83,0.69]
[1756489651751,40.02,203.84,203.83,0.03]
[1756489651947,51.29241494,203.84,203.83,0.03]
[1756489652668,42.17776517,203.86,203.83,0.69]
[1756489652870,77.29241494,203.85,203.83,0.69]
[1756489653062,66.02,203.85,203.83,0.69]
[1756489653367,77.29241494,203.85,203.83,0.03]
[1756489653571,66.02,203.85,203.83,0.03]
[1756489653959,77.29241494,203.85,203.83,0.69]
[1756489654161,25.01017052,203.84,203.83,0.03]
[1756489654553,29.91597899,203.84,203.83,0.03]
[1756489654754,69.93597899,203.84,203.83,0.03]
[1756489655072,70.51597899,203.84,203.83,0.03]
[1756489655649,70.57597899,203.84,203.83,0.03]
[1756489656650,69.99597899,203.84,203.83,0.03]
[1756489656850,70.57597899,203.84,203.83,0.03]
[1756489657458,70.57597899,203.84,203.82,0.03]
[1756489657459,13.73775558,203.83,203.82,1e-08]
[1756489657655,13.73775558,203.8,203.79,1e-08]
[1756489657865,65.03017052,203.8,203.79,1e-08]
[1756489658071,25.01017052,203.8,203.79,1e-08]
[1756489658379,51.29241494,203.8,203.79,1e-08]
[1756489658580,56.19918628,203.8,203.79,1e-08]
[1756489659554,16.17918628,203.8,203.79,1e-08]
[1756489659780,44.92677134,203.8,203.79,1e-08]
[1756489660084,69.93694186,203.8,203.79,1e-08]
[1756489660373,70.92677134,203.8,203.79,1e-08]
[1756489661778,30.90677134,203.8,203.79,1e-08]
[1756489661980,95.93694186,203.8,203.79,1e-08]
[1756489662879,84.66452692,203.8,203.79,1e-08]
[1756489663256,95.93694186,203.8,203.79,1e-08]
[1756489663761,84.66452692,203.8,203.79,1e-08]
[1756489664367,95.93694186,203.8,203.79,1e-08]
[1756489666764,84.66452692,203.8,203.79,1e-08]
[1756489666958,95.93694186,203.8,203.79,1e-08]
[1756489667279,74.52705733,203.8,203.79,1e-08]
[1756489667869,74.52866118,203.8,203.79,1e-08]
[1756489668774,34.50866118,203.8,203.79,1e-08]
[1756489668961,74.52866118,203.8,203.79,1e-08]
[1756489670890,81.62313429,203.8,203.79,1e-08]
[1756489672888,3.60188984,203.8,203.79,0.66000001]
[1756489673066,43.62188984,203.8,203.79,0.66000001]
[1756489673687,3.60188984,203.8,203.79,7.75447312]
[1756489674090,3.61348867,203.8,203.79,7.75447312]
[1756489674479,3.61348867,203.8,203.79,0.66000001]
[1756489674992,3.61607257,203.8,203.79,0.66000001]
[1756489675385,3.61607257,203.8,203.79,7.75447312]
[1756489675575,3.61607257,203.8,203.79,27.75447312]
[1756489676182,3.61607257,203.8,203.79,20.66000001]
[1756489676611,8.52284391,203.8,203.79,20.00000001]
[1756489676773,15.61731702,203.8,203.79,1e-08]
[1756489677176,8.52284391,203.8,203.79,1e-08]
[1756489677682,8.5265416,203.8,203.79,1e-08]
[1756489677884,3.61977026,203.8,203.79,0.66000001]
[1756489678973,3.61977026,203.8,203.79,1e-08]
[1756489679397,10.71424337,203.8,203.79,1e-08]
[1756489679813,8.5265416,203.8,203.79,1e-08]
[1756489680697,3.61977026,203.8,203.79,0.66000001]
[1756489680904,8.5265416,203.8,203.79,1e-08]